bitfinex/quotes_ETHUSD_20240927
["timestamp","ask_amount","ask_price","bid_price","bid_amount"]
[1727442224001,3.7544,2663.6,2663.1,1.29740898]
[1727442224201,7.50879,2663.6,2663.1,1.22231718]
[1727442224515,3.75461,2663.4,2663.1,1.22231718]
[1727442224810,3.75461,2663.4,2663.1,0.763]
[1727442225799,3.75456,2663.5,2663.1,0.763]
[1727442225977,3.7546,2663.4,2663.1,0.763]
[1727442226321,3.75475,2663.3,2663.1,0.763]
[1727442226521,3.7546,2663.4,2663.1,0.763]
[1727442228125,3.75481,2663.3,2663.1,0.763]
[1727442228691,3.7546,2663.4,2663.1,0.763]
[1727442228885,3.75478,2663.3,2663.1,0.763]
[1727442229190,3.7546,2663.4,2663.1,0.763]
[1727442229585,7.50932,2663.4,2663.1,0.763]
[1727442229893,3.75502,2663.1,2662.8,0.792]
[1727442230808,3.75488,2663.2,2662.8,0.792]
[1727442232314,4.51317,2663.4,2662.8,0.792]
[1727442232535,3.75475,2663.3,2662.8,4.54736]
[1727442232834,3.75475,2663.3,2662.8,5.1506121]
[1727442233625,3.75481,2663.3,2662.8,5.1506121]
[1727442234040,3.75467,2663.4,2662.8,5.1506121]
[1727442234215,3.75476,2663.3,2662.8,5.1506121]
[1727442234411,3.75488,2663.2,2662.8,1.3952521]
[1727442234739,3.75488,2663.2,2662.8,0.792]
[1727442234917,3.75505,2663.1,2662.8,0.792]
[1727442235413,3.78155854,2663.5,2662.8,0.792]
[1727442235617,3.75526,2663.0,2662.8,0.792]
[1727442236001,3.75502,2663.1,2662.8,0.792]
[1727442237013,3.75517,2663.0,2662.8,0.792]
[1727442238146,3.75517,2663.0,2662.6,0.8001]
[1727442238445,4.58905854,2663.2,2662.6,0.8001]
[1727442238446,3.75544,2662.8,2662.6,0.8001]
[1727442239041,3.78155854,2662.9,2662.6,0.8001]
[1727442239249,3.75532,2662.9,2662.6,0.8001]
[1727442240246,3.75546,2662.8,2662.6,0.8001]
[1727442240407,3.75558,2662.7,2662.6,0.8001]
[1727442240737,3.75532,2662.9,2662.6,0.8001]
[1727442240939,3.75532,2662.9,2662.3,4.55354]
[1727442241148,3.7556,2662.7,2662.3,4.55354]
[1727442241852,7.886242,2662.9,2662.3,8.3096]
[1727442242011,3.75532,2662.9,2662.3,4.55354]
[1727442242359,3.75551,2662.8,2662.3,4.55354]
[1727442242750,4.51462,2662.7,2662.3,0.7975]
[1727442242951,3.7563,2662.2,2662.0,0.7795]
[1727442243173,3.78155854,2662.1,2661.7,0.8325]
[1727442243330,3.75657,2662.0,2661.7,0.8325]
[1727442243650,3.75673,2661.9,2661.7,0.8325]
[1727442243857,3.75673,2661.9,2661.5,0.8325]
[1727442244228,7.53828854,2661.9,2661.5,0.8325]
[1727442244930,3.75687,2661.8,2661.5,0.8325]
[1727442245354,3.78155854,2661.9,2661.5,0.8325]
[1727442245556,8.33609854,2661.9,2661.2,0.7947]
[1727442245855,7.53855854,2661.7,2661.2,0.7947]
[1727442246918,7.53855854,2661.7,2661.2,4.55235]
[1727442247311,3.757,2661.7,2661.2,4.55235]
[1727442248763,8.3114,2661.9,2661.3,3.75753]
[1727442248971,3.75677,2661.9,2661.4,0.830988]
[1727442249146,3.75677,2661.9,2661.4,4.588378]
[1727442249346,3.75689,2661.8,2661.4,0.830988]
[1727442249682,3.75677,2661.9,2661.4,0.830988]
[1727442249859,3.75708,2661.7,2661.2,0.7947]
[1727442250373,3.75708,2661.7,2661.2,4.55237]
[1727442251232,7.5142,2661.7,2661.2,0.7947]
[1727442251660,3.75708,2661.7,2661.2,0.7947]
[1727442252042,7.53884854,2661.5,2661.2,0.7947]
[1727442252249,3.75748,2661.4,2660.9,8.1327]
[1727442252608,7.53903854,2661.4,2660.9,8.1327]
[1727442252746,3.7576,2661.3,2660.9,8.1327]
[1727442253077,3.7576,2661.3,2660.9,0.7927]
[1727442253275,3.75771,2661.2,2660.9,0.7927]
[1727442253431,3.75748,2661.4,2660.9,0.7927]
[1727442253770,3.75729,2661.5,2660.9,1.247795]
[1727442253995,3.75759,2661.3,2660.9,1.247795]
[1727442254337,3.75751,2661.4,2660.9,5.005885]
[1727442254538,7.53876854,2661.6,2661.0,3.75797]
[1727442254751,7.53876854,2661.6,2660.9,1.247795]
[1727442254978,3.75742,2661.4,2660.9,5.005895]
[1727442255284,7.53876854,2661.6,2660.9,5.005895]
[1727442255285,3.75732,2661.5,2661.0,4.6343845]
[1727442255585,3.75744,2661.4,2661.0,0.8764145]
[1727442255786,3.75744,2661.4,2660.9,0.7927]
[1727442255955,7.53899854,2661.4,2660.9,0.7927]
[1727442256339,3.75763,2661.3,2660.9,0.7927]
[1727442257590,3.75737,2661.5,2661.0,3.75798]
[1727442257743,0.7925,2661.8,2661.0,3.7579]
[1727442257939,11.08155854,2661.9,2660.7,0.07515422]
[1727442257940,7.3,2661.9,2661.6,0.7996]
[1727442258160,3.75643,2662.1,2661.6,1.255279]
[1727442258378,0.8173,2662.7,2662.1,3.7564]
[1727442258541,7.51048,2663.0,2662.3,4.51614]
[1727442258741,3.75521,2663.0,2662.4,3.756]
[1727442258942,3.75521,2663.0,2662.3,1.66235032]
[1727442259194,3.75546,2662.8,2662.3,1.587236]
[1727442260215,3.75521,2663.0,2662.3,1.587236]
[1727442260505,3.7553,2662.9,2662.3,1.587236]
[1727442263423,3.75545,2662.8,2662.3,1.587236]
[1727442264506,3.75531,2662.9,2662.4,0.07511452]
[1727442264831,3.75531,2662.9,2662.4,0.61696157]
[1727442265112,3.75553,2662.8,2662.4,0.54184705]
[1727442265319,3.75553,2662.8,2662.3,0.76]
[1727442266037,7.51107,2662.8,2662.3,0.76]
[1727442266320,3.75553,2662.8,2662.3,0.76]
[1727442266737,3.75553,2662.8,2662.1,3.75632]
[1727442266920,3.75553,2662.8,2661.9,3.75664]
[1727442266921,7.53764854,2662.4,2661.8,3.75671]
[1727442267288,3.75609,2662.4,2661.8,3.75671]
[1727442267513,3.75609,2662.4,2661.9,0.768]
[1727442268124,7.5122,2662.4,2661.9,0.768]
[1727442268306,3.75617,2662.3,2661.9,0.768]
[1727442268642,3.75641,2662.2,2661.9,0.768]
[1727442268993,3.75639,2662.2,2661.9,0.768]
[1727442269191,3.75684,2661.9,2661.7,0.7725]
[1727442269593,7.51364,2661.9,2661.7,0.7725]
[1727442269887,3.7568,2661.9,2661.7,0.7725]
[1727442270832,3.75651,2662.1,2661.7,0.7725]
[1727442271028,3.7566,2662.0,2661.7,0.7725]
[1727442271232,3.75673,2661.9,2661.7,0.7725]
[1727442272507,3.75651,2662.1,2661.7,0.7725]
[1727442272709,3.75659,2662.0,2661.7,0.7725]
[1727442273232,3.75651,2662.1,2661.7,0.7725]
[1727442273538,7.51307,2662.1,2661.7,0.7725]
[1727442273711,3.75651,2662.1,2661.7,0.7725]
[1727442273911,7.51307,2662.1,2661.7,0.7725]
[1727442274121,3.75651,2662.1,2661.7,0.7725]
[1727442274434,3.75658,2662.0,2661.7,0.7725]
[1727442275167,3.75651,2662.1,2661.7,0.7725]
[1727442275339,3.75658,2662.0,2661.7,0.7725]
[1727442276424,3.75636,2662.2,2661.7,1.225469]
[1727442276595,3.75601,2662.4,2661.8,3.75684]
[1727442276815,3.75582,2662.6,2662.0,3.75646]
[1727442277011,3.75591,2662.5,2662.0,3.75646]
[1727442277814,3.75582,2662.6,2662.0,3.75644]
[1727442278014,3.75582,2662.6,2662.1,4.207064]
[1727442278308,3.75582,2662.6,2662.2,0.7924]
[1727442280073,3.7559,2662.5,2662.2,0.7924]
[1727442280474,3.75587,2662.5,2662.2,0.7924]
[1727442281128,3.75582,2662.6,2662.2,0.7924]
[1727442281332,3.75582,2662.6,2662.2,1.2923584]
[1727442281534,7.51163,2662.6,2662.2,1.2923584]
[1727442281857,3.75593,2662.5,2662.2,1.2923584]
[1727442282831,3.75581,2662.6,2662.2,1.2923584]
[1727442283026,3.7558,2662.6,2662.2,1.2923584]
[1727442284281,3.7559,2662.5,2662.2,1.2923584]
[1727442285163,3.75602,2662.4,2662.2,1.2923584]
[1727442285348,3.75615,2662.3,2662.2,0.7924]
[1727442285661,3.7563,2662.2,2661.8,0.8082]
[1727442285978,3.75671,2662.0,2661.8,0.8082]
[1727442286184,3.75671,2662.0,2660.7,0.06540067]
[1727442286185,3.75687,2661.8,2661.3,0.8082]
[1727442286478,7.51468,2661.5,2661.3,0.8082]
[1727442286635,3.75732,2661.5,2661.3,0.8082]
[1727442287160,3.75707,2661.7,2661.3,0.8082]
[1727442287539,3.75716,2661.6,2661.3,0.8082]
[1727442287749,3.75707,2661.7,2661.3,0.8082]
[1727442287978,3.75716,2661.6,2661.3,0.8082]
[1727442290439,3.75707,2661.7,2661.3,0.8082]
[1727442290932,3.75714,2661.6,2661.3,0.8082]
[1727442292377,7.51417,2661.7,2661.3,0.8082]
[1727442293166,3.75707,2661.7,2661.3,0.8082]
[1727442293573,3.75722,2661.6,2661.3,0.8082]
[1727442293885,3.75728,2661.5,2661.0,3.75789]
[1727442294092,3.75765,2661.3,2661.0,0.7614]
[1727442294238,7.53925854,2661.2,2660.7,3.75838]
[1727442294436,3.7577,2661.2,2660.7,3.75838]
[1727442295471,3.75808,2661.0,2660.6,0.7614]
[1727442295636,3.75828,2660.8,2660.6,0.7614]
[1727442295840,3.75828,2660.8,2660.3,0.7746]
[1727442296098,3.75875,2660.5,2660.0,0.7746]
[1727442297080,3.75863,2660.6,2660.0,4.987372]
[1727442297238,3.75848,2660.7,2660.0,4.987372]
[1727442297441,3.75848,2660.7,2660.1,7.51834]
[1727442297672,7.51643,2660.9,2660.2,3.75908]
[1727442297892,3.75868,2660.6,2660.2,0.8746352]
[1727442298075,3.75868,2660.6,2660.0,4.987402]
[1727442298277,3.75868,2660.6,2660.0,1.228012]
[1727442298481,7.54020854,2660.6,2660.0,1.228012]
[1727442298660,3.78155854,2660.6,2660.0,1.228012]
[1727442298865,3.75877,2660.5,2660.0,0.7746]
[1727442299152,3.75884,2660.4,2660.0,0.7746]
[1727442299395,3.75877,2660.5,2660.0,0.7746]
[1727442299583,3.75885,2660.4,2660.0,0.7746]
[1727442300318,0.7892,2660.6,2660.0,0.7746]
[1727442300472,3.75912,2660.2,2659.6,4.52157]
[1727442301097,3.75909,2660.3,2659.8,3.75968]
[1727442301522,3.75877,2660.5,2659.8,3.75967]
[1727442301874,3.75902,2660.3,2659.7,3.75973]
[1727442302100,3.75902,2660.3,2659.7,8.347558]
[1727442302405,3.75902,2660.3,2659.7,4.587828]
[1727442302786,7.51808,2660.3,2659.7,4.587828]
[1727442303109,3.75902,2660.3,2659.7,4.587828]
[1727442304675,3.75875,2660.5,2659.8,3.75955]
[1727442304910,3.75908,2660.3,2659.8,0.54247116]
[1727442305256,3.75913,2660.2,2659.8,0.54247116]
[1727442306907,3.75897,2660.4,2659.9,4.27250992]
[1727442307121,3.75905,2660.3,2659.9,0.51302992]
[1727442307269,3.75913,2660.2,2659.9,0.51302992]
[1727442307469,3.75913,2660.2,2659.6,8.28139]
[1727442307711,3.75913,2660.2,2659.6,8.2814]
[1727442308032,0.7664,2660.1,2659.6,0.7617]
[1727442308309,3.75963,2659.9,2659.2,0.7927]
[1727442308517,0.7664,2660.1,2659.2,0.7927]
[1727442308518,7.54139854,2659.7,2659.2,4.55316]
[1727442308668,3.75998,2659.6,2659.2,0.7927]
[1727442308876,3.76011,2659.5,2659.2,0.7927]
[1727442309100,3.76032,2659.4,2659.2,0.7927]
[1727442309315,7.54201854,2659.3,2658.8,0.7885]
[1727442309519,3.78155854,2659.3,2658.8,0.7885]
[1727442309818,3.76015,2659.5,2658.9,3.76086]
[1727442310032,3.76033,2659.4,2658.9,3.76086]
[1727442310207,3.78155854,2659.4,2658.6,0.7931]
[1727442310534,3.76042,2659.3,2658.6,0.7931]
[1727442310672,3.76042,2659.3,2658.6,4.55444]
[1727442310870,3.76042,2659.3,2658.7,3.76113]
[1727442311104,3.76042,2659.3,2658.8,3.76107]
[1727442311304,3.76042,2659.3,2658.6,0.7931]
[1727442311615,7.52092,2659.3,2658.7,4.16527079]
[1727442311906,3.7606,2659.2,2658.6,4.55445]
[1727442312219,3.7606,2659.2,2658.6,4.5544]
[1727442312381,3.7606,2659.2,2658.6,0.7931]
[1727442312706,7.52124,2659.2,2658.6,0.7931]
[1727442312939,3.78155854,2658.9,2658.4,0.1282747]
[1727442313141,3.76109,2658.8,2658.4,0.1282747]
[1727442313309,7.54279854,2658.7,2658.4,0.1282747]
[1727442313632,3.76109,2658.8,2658.4,0.1282747]
[1727442313835,4.513286,2658.8,2658.4,0.1282747]
[1727442313995,4.53375454,2658.8,2658.4,0.1282747]
[1727442314196,4.59305854,2658.6,2658.4,0.1282747]
[1727442314427,3.76151,2658.5,2658.4,0.1282747]
[1727442314824,8.35454854,2658.6,2658.4,0.1282747]
[1727442315143,3.76151,2658.5,2658.4,0.1282747]
[1727442315293,12.11604854,2658.6,2658.4,0.1282747]
[1727442315491,3.76151,2658.5,2658.4,0.1282747]
[1727442315897,4.57299,2658.6,2658.4,0.1282747]
[1727442316105,0.8115,2658.6,2658.4,0.1282747]
[1727442317840,4.55066,2658.8,2658.4,0.1282747]
[1727442318010,8.31185,2658.8,2658.4,0.1282747]
[1727442318212,4.55066,2658.8,2658.4,0.1282747]
[1727442318545,5.38388185,2658.8,2658.4,0.1282747]
[1727442318749,3.76124,2658.7,2658.4,0.1282747]
[1727442319102,3.76139,2658.6,2658.4,0.1282747]
[1727442320006,3.76151,2658.5,2658.4,0.1282747]
[1727442320221,7.52286,2658.6,2658.4,0.1282747]
[1727442320439,3.76139,2658.6,2658.4,0.1282747]
[1727442321158,5.38387185,2658.8,2658.4,0.1282747]
[1727442321159,9.14507185,2658.8,2658.4,0.1282747]
[1727442321431,3.76131,2658.7,2658.4,0.1282747]
[1727442322146,9.14505185,2658.8,2658.4,0.1282747]
[1727442322526,3.76123,2658.7,2658.4,0.1282747]
[1727442322841,4.55065,2658.8,2658.4,0.1282747]
[1727442323563,3.76087,2659.0,2658.5,4.578]
[1727442323859,3.76084,2659.0,2658.5,5.42473947]
[1727442324083,7.52176,2659.0,2658.5,5.42473947]
[1727442324267,0.8244,2659.1,2658.5,0.8165]
[1727442324420,3.76117,2658.8,2658.4,0.1282747]
[1727442324618,7.52235,2658.8,2658.4,0.1282747]
[1727442325021,3.76126,2658.7,2658.4,0.1282747]
[1727442325783,3.76117,2658.8,2658.4,0.1282747]
[1727442326260,7.52181,2659.0,2658.4,0.1282747]
[1727442326426,7.52181,2659.0,2658.4,3.8899147]
[1727442326427,3.76096,2658.9,2658.4,3.8899147]
[1727442326624,3.76096,2658.9,2658.4,0.1282747]
[1727442326929,3.76087,2659.0,2658.4,0.1282747]
[1727442326930,3.76111,2658.8,2658.4,0.1282747]
[1727442327140,3.76032,2659.4,2658.5,0.758]
[1727442327348,3.76039,2659.3,2658.7,3.76116]
[1727442327521,3.76032,2659.4,2659.0,0.7719]
[1727442328200,4.57566,2659.6,2659.0,0.7719]
[1727442328418,4.57564,2659.6,2659.0,0.7719]
[1727442328709,3.0,2659.7,2659.1,3.76053]
[1727442328859,6.75986,2659.7,2659.1,3.76053]
[1727442329081,4.58715,2659.8,2659.3,3.76037]
[1727442329313,5.49722739,2659.8,2659.3,3.76037]
[1727442329600,3.75954,2659.9,2659.4,4.55351]
[1727442329805,3.75975,2659.8,2659.4,0.7934]
[1727442330156,3.75954,2659.9,2659.4,0.7934]
[1727442330157,3.75985,2659.7,2659.4,0.7934]
[1727442330359,4.511789,2659.7,2659.4,0.7934]
[1727442331057,8.271689,2659.7,2659.4,0.7934]
[1727442331276,3.76026,2659.4,2658.9,0.8222]
[1727442331619,3.76026,2659.4,2658.9,4.58311]
[1727442331958,0.7747,2659.3,2658.8,3.76095]
[1727442332197,3.76081,2659.0,2658.7,0.8156]
[1727442332405,3.76081,2659.0,2658.4,6.8823878]
[1727442332578,3.76081,2659.0,2658.5,0.8167]
[1727442332761,4.136891,2659.0,2658.5,0.8167]
[1727442332969,3.76105,2658.9,2658.5,0.8167]
[1727442333206,4.136891,2659.0,2658.5,0.8167]
[1727442333577,7.897821,2659.0,2658.5,0.8167]
[1727442333915,3.76135,2658.7,2658.4,0.1207978]
[1727442334076,3.76138,2658.6,2658.4,0.1207978]
[1727442335949,7.52285,2658.6,2658.4,0.1207978]
[1727442336850,7.982068,2658.6,2658.4,0.1207978]
[1727442337017,3.76151,2658.5,2658.4,0.1207978]
[1727442337608,4.220608,2658.6,2658.4,0.1207978]
[1727442337804,0.459228,2658.6,2658.4,0.1207978]
[1727442338044,4.59207,2658.8,2658.4,0.1207978]
[1727442338507,8.35326,2658.8,2658.4,0.1207978]
[1727442338907,8.35325,2658.8,2658.4,0.1207978]
[1727442339529,4.59207,2658.8,2658.4,0.1207978]
[1727442340070,0.7727,2659.0,2658.5,4.57633]
[1727442340230,3.76067,2659.1,2658.5,4.57633]
[1727442341161,7.52095,2659.3,2658.6,3.76129]
[1727442341362,3.76046,2659.3,2658.6,3.76129]
[1727442341671,3.76046,2659.3,2658.8,3.76105]
[1727442342476,3.76046,2659.3,2658.8,3.761]
[1727442342645,3.76021,2659.5,2658.9,0.8235]
[1727442342976,3.76027,2659.4,2658.9,0.8235]
[1727442343127,3.76039,2659.3,2658.9,0.8235]
[1727442344137,3.76028,2659.4,2658.9,0.8235]
[1727442346049,3.76021,2659.5,2658.9,0.8235]
[1727442346253,3.76042,2659.3,2658.9,0.8235]
[1727442346437,3.76068,2659.1,2658.9,0.8235]
[1727442346942,3.76042,2659.3,2658.6,8.29458]
[1727442347142,3.76069,2659.1,2658.6,4.53328]
[1727442348142,7.52146,2659.1,2658.6,4.53328]
[1727442348469,3.76069,2659.1,2658.6,4.53328]
[1727442348676,3.76106,2658.9,2658.6,0.772]
[1727442348830,3.76106,2658.9,2658.4,3.8823578]
[1727442348831,3.76126,2658.7,2658.4,0.1207978]
[1727442349574,3.76138,2658.6,2658.4,0.1207978]
[1727442351243,3.76151,2658.5,2658.4,0.1207978]
[1727442352033,3.76138,2658.6,2658.4,0.1207978]
[1727442352648,4.52218,2658.8,2658.4,0.1207978]
[1727442353261,7.52178,2659.0,2658.4,0.1207978]
[1727442353459,9.079828,2659.0,2658.5,3.76141]
[1727442353674,9.079848,2659.0,2658.5,3.76141]
[1727442353839,3.76096,2658.9,2658.5,3.76141]
[1727442354035,5.318928,2659.0,2658.4,0.1207978]
[1727442354347,4.3687728,2658.9,2658.4,3.8823378]
[1727442356477,3.7611,2658.8,2658.4,0.1207978]
[1727442356976,7.52227,2658.8,2658.4,0.1207978]
[1727442357583,5.318958,2659.0,2658.5,4.56271]
[1727442357735,11.06061,2659.2,2658.5,5.40732478]
[1727442357943,11.06061,2659.2,2658.7,3.7612]
[1727442358448,3.76061,2659.2,2658.7,3.7612]
[1727442358674,3.76039,2659.3,2658.8,3.76108]
[1727442359393,3.76054,2659.2,2658.7,3.7612]
[1727442360191,3.76049,2659.3,2658.8,3.76108]
[1727442360564,3.76055,2659.2,2658.6,8.07538526]
[1727442360764,3.76055,2659.2,2658.6,4.31404526]
[1727442360960,7.52119,2659.2,2658.6,4.31404526]
[1727442361400,3.76068,2659.1,2658.6,4.31404526]
[1727442361759,3.76068,2659.1,2658.6,3.76125]
[1727442361962,3.76055,2659.2,2658.4,0.1207978]
[1727442361963,3.76117,2658.8,2658.4,0.1207978]
[1727442362395,3.76138,2658.6,2658.4,0.1207978]
[1727442362690,0.376138,2658.5,2658.4,0.1207978]
[1727442363888,3.76125,2658.7,2658.4,0.1207978]
[1727442364057,3.76137,2658.6,2658.4,0.1207978]
[1727442365597,3.76147,2658.6,2658.4,0.1207978]
[1727442366137,3.76125,2658.7,2658.4,0.1207978]
[1727442366749,3.76138,2658.6,2658.4,0.1207978]
[1727442367033,4.513643,2658.6,2658.4,0.1207978]
[1727442367211,0.752263,2658.6,2658.4,0.1207978]
[1727442367417,3.76144,2658.6,2658.4,0.1207978]
[1727442368321,3.76127,2658.7,2658.4,0.1207978]
[1727442368517,3.76123,2658.8,2658.4,0.1207978]
[1727442369024,10.3,2659.2,2658.6,3.76134]
[1727442369025,7.3,2659.2,2658.6,3.76134]
[1727442369221,11.06056,2659.2,2658.8,0.8125]
[1727442369422,7.3,2659.2,2658.8,4.57358]
[1727442369735,7.3,2659.2,2658.8,4.5735]
[1727442369939,11.06054,2659.2,2658.8,0.8125]
[1727442370452,3.76068,2659.1,2658.8,0.8125]
[1727442370643,3.76082,2659.0,2658.5,0.8078]
[1727442370818,3.76082,2659.0,2658.4,0.1207978]
[1727442370819,3.76119,2658.8,2658.4,0.1207978]
[1727442371147,3.76134,2658.7,2658.4,0.1207978]
[1727442371326,3.76144,2658.6,2658.4,0.1207978]
[1727442371910,3.76151,2658.5,2658.4,0.1207978]
[1727442373873,8.27316,2658.6,2658.4,0.1207978]
[1727442374102,3.76139,2658.6,2658.4,0.1207978]
[1727442374467,4.137309,2658.8,2658.4,0.1207978]
[1727442374864,3.76083,2659.0,2658.5,4.54157]
[1727442375400,3.76096,2658.9,2658.5,0.7801]
[1727442375556,0.7809,2659.3,2658.5,0.7801]
[1727442375750,3.76119,2658.8,2658.5,0.7801]
[1727442376865,3.76126,2658.7,2658.4,0.1207978]
[1727442377070,3.76151,2658.5,2658.4,0.1207978]
[1727442377599,4.56131,2658.5,2658.4,0.1207978]
[1727442380968,7.52286,2658.6,2658.4,0.1207978]
[1727442381183,3.76138,2658.6,2658.4,0.1207978]
[1727442381473,4.218608,2658.6,2658.4,0.1207978]
[1727442381996,3.76151,2658.5,2658.4,0.1207978]
[1727442382395,0.457228,2658.6,2658.4,0.1207978]
[1727442382570,4.5721,2658.8,2658.4,0.8742978]
[1727442382770,3.76091,2659.0,2658.5,3.76141]
[1727442382983,7.52184,2659.0,2658.5,3.76141]
[1727442383314,3.76095,2658.9,2658.4,4.6359178]
[1727442383615,3.76095,2658.9,2658.4,0.8742978]
[1727442383969,0.827236,2658.9,2658.4,0.8742978]
[1727442384282,3.76127,2658.7,2658.4,0.8742978]
[1727442384476,3.76142,2658.6,2658.4,0.1207978]
[1727442384921,3.76151,2658.5,2658.4,0.1207978]
[1727442385086,4.137661,2658.5,2658.4,0.1207978]
[1727442385976,0.376151,2658.5,2658.4,0.1207978]
[1727442386175,4.137661,2658.5,2658.4,0.1207978]
[1727442386615,0.376151,2658.5,2658.4,0.1207978]
[1727442387413,4.137661,2658.5,2658.4,0.1207978]
[1727442393437,11.69471954,2658.5,2658.4,0.1207978]
[1727442393734,12.24471954,2658.5,2658.4,0.1207978]
[1727442395199,7.913161,2658.5,2658.4,0.1207978]
[1727442395490,4.913161,2658.5,2658.4,0.1207978]
[1727442395837,3.76145,2658.6,2658.4,0.1207978]
[1727442396000,3.76147,2658.6,2658.4,0.1207978]
[1727442396338,3.76151,2658.5,2658.4,0.1207978]
[1727442396524,3.76145,2658.6,2658.4,0.1207978]
[1727442397742,3.76117,2658.8,2658.4,0.1207978]
[1727442397893,3.76151,2658.5,2658.4,0.1207978]
[1727442399202,8.11561,2658.5,2658.4,0.1207978]
[1727442400242,10.37461,2658.5,2658.4,0.1207978]
[1727442401453,14.15616854,2658.5,2658.4,0.1207978]
[1727442401949,10.37461,2658.5,2658.4,0.1207978]
[1727442402113,12.49251523,2658.5,2658.4,0.1207978]
[1727442403957,9.68351523,2658.5,2658.4,0.1207978]
[1727442404161,6.68351523,2658.5,2658.4,0.1207978]
[1727442405268,9.68351523,2658.5,2658.4,0.1207978]
[1727442406969,9.68351523,2658.5,2658.4,1.1207978]
[1727442409562,8.87941523,2658.5,2658.4,1.1207978]
[1727442413281,9.42941523,2658.5,2658.4,1.1207978]
[1727442415483,8.87941523,2658.5,2658.4,1.1207978]
[1727442415687,6.76151,2658.5,2658.4,1.1207978]
[1727442418295,3.76151,2658.5,2658.4,1.1207978]
[1727442419181,3.0,2658.8,2658.4,1.1207978]
[1727442419487,3.76134,2658.7,2658.4,1.1207978]
[1727442419700,3.76134,2658.7,2658.5,0.7616]
[1727442419856,6.7611,2658.8,2658.5,0.7616]
[1727442420567,3.0,2658.9,2658.5,0.7616]
[1727442420770,3.76109,2658.8,2658.5,0.7616]
[1727442421371,3.76132,2658.7,2658.5,0.7616]
[1727442421571,3.76109,2658.8,2658.5,0.7616]
[1727442421978,7.52226,2658.8,2658.5,0.7616]
[1727442422304,7.52232,2658.8,2658.5,0.7616]
[1727442422597,3.76133,2658.7,2658.5,0.7616]
[1727442422802,3.76137,2658.6,2658.5,0.7616]
[1727442423165,3.76137,2658.6,2658.4,1.1207978]
[1727442423677,3.76151,2658.5,2658.4,1.1207978]
[1727442429952,4.513798,2658.5,2658.4,1.1207978]
[1727442430545,3.76151,2658.5,2658.4,1.1207978]
[1727442431808,3.76137,2658.6,2658.4,1.1207978]
[1727442432035,7.52242,2658.8,2658.5,0.7939]
[1727442432344,3.76151,2658.5,2658.4,1.1207978]
[1727442432648,4.593628,2658.5,2658.4,1.1207978]
[1727442435607,9.74348654,2658.5,2658.4,1.1207978]
[1727442437454,12.74348654,2658.5,2658.4,1.1207978]
[1727442440253,12.19348654,2658.5,2658.4,1.1207978]
[1727442441848,12.74348654,2658.5,2658.4,1.1207978]
[1727442445330,6.76151,2658.5,2658.4,1.1207978]
[1727442446225,7.53691,2658.5,2658.4,0.1207978]
[1727442446859,8.08691,2658.5,2658.4,0.1207978]
[1727442450368,6.76151,2658.5,2658.4,0.1207978]
[1727442450661,8.27370385,2658.5,2658.4,0.1207978]
[1727442451231,5.27370385,2658.5,2658.4,0.1207978]
[1727442451484,3.26124428,2658.9,2658.4,0.8792978]
[1727442451633,3.76102,2658.9,2658.4,3.8824378]
[1727442451834,7.3,2659.2,2658.4,3.8824378]
[1727442451835,3.7611,2658.8,2658.5,0.7585]
[1727442452343,3.76096,2658.9,2658.5,0.7585]
[1727442452543,3.7609,2659.0,2658.6,0.46409378]
[1727442452743,7.3,2659.2,2658.6,0.46409378]
[1727442452983,7.3,2659.2,2658.5,0.7585]
[1727442452984,3.76111,2658.8,2658.5,0.7585]
[1727442453193,3.76102,2658.9,2658.5,0.7585]
[1727442453342,3.76092,2659.0,2658.5,1.22259678]
[1727442453343,3.7611,2658.8,2658.5,1.22259678]
[1727442453541,7.52184,2659.0,2658.5,1.22259678]
[1727442453781,3.76096,2658.9,2658.5,1.22259678]
[1727442453956,3.76112,2658.8,2658.5,1.22259678]
[1727442454345,7.52181,2659.0,2658.5,0.46409678]
[1727442454553,7.52181,2659.0,2658.6,1.24885446]
[1727442454791,0.55,2659.1,2658.6,1.24885446]
[1727442454955,3.76074,2659.1,2658.6,0.8142]
[1727442455151,7.52204,2658.9,2658.6,0.8142]
[1727442455383,3.76097,2658.9,2658.6,0.8142]
[1727442455894,3.7611,2658.8,2658.6,0.8142]
[1727442456594,7.52182,2659.0,2658.6,0.8142]
[1727442456781,3.76096,2658.9,2658.6,0.8142]
[1727442456983,3.76096,2658.9,2658.6,1.33027446]
[1727442457603,3.76098,2658.9,2658.6,0.8142]
[1727442458256,3.76089,2659.0,2658.6,0.8142]
[1727442458775,3.7611,2658.8,2658.6,0.8142]
[1727442459806,3.76123,2658.7,2658.6,0.8142]
[1727442462408,3.7611,2658.8,2658.6,0.8142]
[1727442462706,7.52228,2658.8,2658.6,0.8142]
[1727442462869,3.7611,2658.8,2658.6,0.8142]
[1727442463598,7.52229,2658.8,2658.6,0.8142]
[1727442464002,0.752229,2658.8,2658.4,0.1207978]
[1727442464305,3.76151,2658.5,2658.4,0.1207978]
[1727442466403,3.76148,2658.6,2658.4,0.1207978]
[1727442467384,3.76124,2658.7,2658.4,0.1207978]
[1727442468607,3.76141,2658.6,2658.4,0.1207978]
[1727442468816,3.76124,2658.7,2658.4,0.1207978]
[1727442469212,3.76103,2658.9,2658.5,0.7852]
[1727442469600,3.76115,2658.8,2658.5,0.7852]
[1727442470933,3.76075,2659.1,2658.5,0.7852]
[1727442471227,3.78155854,2659.5,2658.5,0.7852]
[1727442471228,3.76034,2659.4,2659.0,0.7573]
[1727442471521,8.0619,2659.7,2659.0,0.7573]
[1727442471522,3.76052,2659.3,2659.0,1.209123]
[1727442471821,3.76052,2659.2,2659.0,0.7573]
[1727442472629,3.76067,2659.1,2658.6,0.7953]